fUST/lending_fUST_20260524
["ID","MTS","AMOUNT","RATE_DAILY","PERIOD"]
[422880229,1779563439000,-500.0,7.574e-05,2]
[422880221,1779563439000,-500.0,7.574e-05,2]
[422880228,1779563439000,-500.0,7.574e-05,2]
[422880223,1779563439000,-500.0,7.574e-05,2]
[422880232,1779563439000,-500.0,7.574e-05,2]
[422880230,1779563439000,-500.0,7.574e-05,2]
[422880247,1779563439000,-81106.07720228,7.917e-05,2]
[422880240,1779563439000,-578.20528447,7.884e-05,2]
[422880244,1779563439000,-578.20528447,7.884e-05,2]
[422880239,1779563439000,-578.20528447,7.884e-05,2]
[422880241,1779563439000,-578.20528447,7.884e-05,2]
[422880243,1779563439000,-578.20528447,7.884e-05,2]
[422880245,1779563439000,-578.20528447,7.884e-05,2]
[422880248,1779563439000,-2696.0,7.917e-05,2]
[422880238,1779563439000,-578.20528447,7.884e-05,2]
[422880237,1779563439000,-578.20528447,7.884e-05,2]
[422880246,1779563439000,-1318.63953905,7.914e-05,2]
[422880235,1779563439000,-500.0,7.574e-05,2]
[422880236,1779563439000,-578.20528447,7.884e-05,2]
[422880231,1779563439000,-500.0,7.574e-05,2]
[422880242,1779563439000,-578.20528447,7.884e-05,2]
[422880273,1779563441000,-500.0,8.219e-05,2]
[422880280,1779563441000,-500.0,8.219e-05,2]
[422880275,1779563441000,-500.0,8.219e-05,2]
[422880270,1779563441000,-5766.5063589,7.917e-05,2]
[422880272,1779563441000,-500.0,8.219e-05,2]
[422880271,1779563441000,-170.27429864,8e-05,2]
[422880281,1779563441000,-500.0,8.219e-05,2]
[422880274,1779563441000,-500.0,8.219e-05,2]
[422880276,1779563441000,-504.11,8.219e-05,2]
[422880277,1779563441000,-500.0,8.219e-05,2]
[422880269,1779563441000,-23744.86465437,7.917e-05,2]
[422880278,1779563441000,-500.0,8.219e-05,2]
[422880279,1779563441000,-1902.74,8.219e-05,2]
[422880290,1779563441000,-558.0,8.331e-05,2]
[422880287,1779563441000,-210.23082597,8.219e-05,2]
[422880285,1779563441000,-340.44508107,8.219e-05,2]
[422880288,1779563441000,-289.76917403,8.219e-05,2]
[422880286,1779563441000,-159.98996729,8.219e-05,2]
[422880283,1779563441000,-472.80508107,8.219e-05,2]
[422880284,1779563441000,-502.19491893,8.219e-05,2]
[422880282,1779563441000,-27.19491893,8.219e-05,2]
[422880289,1779563441000,-94.26432697,8.331e-05,2]
[422880340,1779563444000,-301.03581056,8.767e-05,2]
[422880337,1779563444000,-78.45296562,8.767e-05,2]
[422880336,1779563444000,-500.0,8.767e-05,2]
[422880338,1779563444000,-421.54703438,8.767e-05,2]
[422880335,1779563444000,-500.0,8.767e-05,2]
[422880339,1779563444000,-198.96418944,8.767e-05,2]
[422880352,1779563444000,-500.0,9.041e-05,2]
[422880346,1779563444000,-500.0,8.767e-05,2]
[422880355,1779563444000,-1902.74,9.041e-05,2]
[422880342,1779563444000,-1902.74,8.767e-05,2]
[422880353,1779563444000,-500.0,9.041e-05,2]
[422880333,1779563444000,-2125.38560048,8.747e-05,2]
[422880344,1779563444000,-500.0,8.767e-05,2]
[422880347,1779563444000,-500.0,8.767e-05,2]
[422880348,1779563444000,-842.64,8.767e-05,2]
[422880354,1779563444000,-500.0,9.041e-05,2]
[422880334,1779563444000,-830.89351235,8.747e-05,2]
[422880328,1779563444000,-720.0,8.498e-05,2]
[422880332,1779563444000,-1032.88175485,8.747e-05,2]
[422880315,1779563444000,-3317.8900379,8.331e-05,2]
[422880318,1779563444000,-500.0,8.493e-05,2]
[422880317,1779563444000,-500.0,8.493e-05,2]
[422880316,1779563444000,-500.0,8.493e-05,2]
[422880319,1779563444000,-500.0,8.493e-05,2]
[422880320,1779563444000,-500.0,8.493e-05,2]
[422880321,1779563444000,-1108.95322961,8.493e-05,2]
[422880322,1779563444000,-793.78677039,8.493e-05,2]
[422880323,1779563444000,-500.0,8.493e-05,2]
[422880330,1779563444000,-162.46427794,8.6e-05,2]
[422880329,1779563444000,-1516.78583836,8.599e-05,2]
[422880324,1779563444000,-500.0,8.493e-05,2]
[422880327,1779563444000,-500.0,8.493e-05,2]
[422880325,1779563444000,-500.0,8.493e-05,2]
[422880326,1779563444000,-842.64,8.493e-05,2]
[422880331,1779563444000,-291.29431906,8.6e-05,2]
[422880341,1779563444000,-500.0,8.767e-05,2]
[422880356,1779563444000,-500.0,9.041e-05,2]
[422880350,1779563444000,-500.0,9.041e-05,2]
[422880378,1779563444000,-842.64,9.315e-05,2]
[422880374,1779563444000,-1902.74,9.315e-05,2]
[422880379,1779563444000,-500.0,9.315e-05,2]
[422880375,1779563444000,-500.0,9.315e-05,2]
[422880376,1779563444000,-500.0,9.315e-05,2]
[422880382,1779563444000,-500.0,9.425e-05,2]
[422880383,1779563444000,-150.0,9.5e-05,30]
[422880387,1779563444000,-500.0,9.589e-05,2]
[422880384,1779563444000,-104.26586237,9.589e-05,2]
[422880388,1779563444000,-500.0,9.589e-05,2]
[422880386,1779563444000,-500.0,9.589e-05,2]
[422880389,1779563444000,-283.51877154,9.589e-05,2]
[422880385,1779563444000,-395.73413763,9.589e-05,2]
[422880390,1779563444000,-1534.00750958,9.589e-05,2]
[422880349,1779563444000,-500.0,8.767e-05,2]
[422880373,1779563444000,-500.0,9.315e-05,2]
[422880369,1779563444000,-500.0,9.315e-05,2]
[422880377,1779563444000,-500.0,9.315e-05,2]
[422880371,1779563444000,-500.0,9.315e-05,2]
[422880351,1779563444000,-500.0,9.041e-05,2]
[422880358,1779563444000,-500.0,9.041e-05,2]
[422880372,1779563444000,-500.0,9.315e-05,2]
[422880359,1779563444000,-842.64,9.041e-05,2]
[422880360,1779563444000,-500.0,9.041e-05,2]
[422880368,1779563444000,-483.87417667,9.204e-05,2]
[422880367,1779563444000,-355.15335621,9.163e-05,2]
[422880357,1779563444000,-500.0,9.041e-05,2]
[422880364,1779563444000,-1930.36814774,9.163e-05,2]
[422880365,1779563444000,-695.7,9.163e-05,2]
[422880366,1779563444000,-1828.5208098,9.163e-05,2]
[422880362,1779563444000,-161.73153808,9.065e-05,2]
[422880363,1779563444000,-766.63845589,9.065e-05,2]
[422880370,1779563444000,-500.0,9.315e-05,2]
[422880380,1779563444000,-1614.91491912,9.319e-05,2]
[422880381,1779563444000,-864.0,9.348e-05,2]
[422880361,1779563444000,-160.0,9.065e-05,2]
[422880413,1779563447000,-643.0707002,9.589e-05,2]
[422880414,1779563447000,-500.0,9.589e-05,2]
[422880411,1779563447000,-368.73249042,9.589e-05,2]
[422880409,1779563447000,-1239.01132386,7.884e-05,2]
[422880408,1779563447000,-343.86048317,7.884e-05,2]
[422880404,1779563447000,-145.86964541,7.884e-05,2]
[422880405,1779563447000,-1093.14167845,7.884e-05,2]
[422880407,1779563447000,-895.15084069,7.884e-05,2]
[422880403,1779563447000,-653.78189477,7.884e-05,2]
[422880402,1779563447000,-585.22942909,7.884e-05,2]
[422880418,1779563447000,-600.0,9.78e-05,2]
[422880406,1779563447000,-1239.01132386,7.884e-05,2]
[422880410,1779563447000,-1239.01132386,7.884e-05,2]
[422880417,1779563447000,-170.27429862,9.747e-05,2]
[422880412,1779563447000,-500.0,9.589e-05,2]
[422880416,1779563447000,-500.0,9.589e-05,2]
[422880427,1779563447000,-500.0,9.863e-05,2]
[422880425,1779563447000,-1902.74,9.863e-05,2]
[422880426,1779563447000,-500.0,9.863e-05,2]
[422880424,1779563447000,-500.0,9.863e-05,2]
[422880421,1779563447000,-500.0,9.863e-05,2]
[422880423,1779563447000,-500.0,9.863e-05,2]
[422880428,1779563447000,-842.64,9.863e-05,2]
[422880429,1779563447000,-500.0,9.863e-05,2]
[422880419,1779563447000,-185.0,9.833e-05,2]
[422880420,1779563447000,-443.0,9.833e-05,2]
[422880415,1779563447000,-842.64,9.589e-05,2]
[422880422,1779563447000,-500.0,9.863e-05,2]
[422880476,1779563448000,-500.0,0.00010901,2]
[422880483,1779563448000,-9560.9779697,0.00010959,2]
[422880473,1779563448000,-6567.9150978,0.00010829,2]
[422880472,1779563448000,-6113.68702618,0.000108,2]
[422880459,1779563448000,-500.0,0.0001041,2]
[422880468,1779563448000,-842.64,0.00010684,2]
[422880471,1779563448000,-720.0,0.00010758,2]
[422880495,1779563448000,-2181.11329844,0.00011478,2]
[422880464,1779563448000,-500.0,0.00010684,2]
[422880461,1779563448000,-6113.68702618,0.000105,2]
[422880481,1779563448000,-842.64,0.00010958,2]
[422880462,1779563448000,-6113.68702618,0.000106,2]
[422880466,1779563448000,-500.0,0.00010684,2]
[422880485,1779563448000,-557.68549176,0.00011204,2]
[422880480,1779563448000,-500.0,0.00010958,2]
[422880474,1779563448000,-156.3695508,0.00010893,2]
[422880479,1779563448000,-500.0,0.00010958,2]
[422880484,1779563448000,-8246.5375394,0.00011088,2]
[422880478,1779563448000,-1902.74,0.00010958,2]
[422880477,1779563448000,-500.0,0.00010958,2]
[422880482,1779563448000,-257.93578173,0.00010958,2]
[422880486,1779563448000,-500.0,0.00011232,2]
[422880488,1779563448000,-500.0,0.00011232,2]
[422880487,1779563448000,-1902.74,0.00011232,2]
[422880499,1779563448000,-410.58419255,0.00011506,2]
[422880493,1779563448000,-614.129,0.00011314,2]
[422880498,1779563448000,-500.0,0.00011506,2]
[422880494,1779563448000,-150.308,0.00011314,2]
[422880463,1779563448000,-198.02,0.00010684,2]
[422880475,1779563448000,-6113.68702618,0.000109,2]
[422880470,1779563448000,-6113.68702618,0.000107,2]
[422880430,1779563448000,-640.06765926,9.896e-05,2]
[422880469,1779563448000,-500.0,0.00010684,2]
[422880431,1779563448000,-363.006877,9.9e-05,2]
[422880434,1779563448000,-10000.0,0.0001,30]
[422880435,1779563448000,-1195.43,0.0001,30]
[422880433,1779563448000,-6113.68702618,0.0001,2]
[422880437,1779563448000,-6113.68702618,0.000101,2]
[422880436,1779563448000,-1786.54443238,0.00010039,2]
[422880441,1779563448000,-500.0,0.00010136,2]
[422880432,1779563448000,-5630.32375983,9.996e-05,2]
[422880438,1779563448000,-500.0,0.00010136,2]
[422880440,1779563448000,-599.54760448,0.00010136,2]
[422880439,1779563448000,-500.0,0.00010136,2]
[422880443,1779563448000,-500.0,0.00010136,2]
[422880442,1779563448000,-1902.74,0.00010136,2]
[422880451,1779563448000,-6113.68702618,0.000104,2]
[422880445,1779563448000,-842.64,0.00010136,2]
[422880452,1779563448000,-500.0,0.0001041,2]
[422880457,1779563448000,-500.0,0.0001041,2]
[422880454,1779563448000,-518.1416272,0.0001041,2]
[422880455,1779563448000,-1902.74,0.0001041,2]
[422880453,1779563448000,-500.0,0.0001041,2]
[422880456,1779563448000,-500.0,0.0001041,2]
[422880448,1779563448000,-6113.68702618,0.000103,2]
[422880444,1779563448000,-500.0,0.00010136,2]
[422880446,1779563448000,-500.0,0.00010136,2]
[422880447,1779563448000,-6113.68702618,0.000102,2]
[422880450,1779563448000,-210.08344815,0.00010353,2]
[422880449,1779563448000,-500.0,0.00010353,2]
[422880458,1779563448000,-842.64,0.0001041,2]
[422880460,1779563448000,-6451.05154592,0.00010412,2]
[422880465,1779563448000,-1902.74,0.00010684,2]
[422880497,1779563448000,-1902.74,0.00011506,2]
[422880467,1779563448000,-500.0,0.00010684,2]
[422880489,1779563448000,-500.0,0.00011232,2]
[422880527,1779563448000,-1039.76081289,0.000124,2]
[422880535,1779563448000,-155.0,0.00012605,2]
[422880532,1779563448000,-1902.74,0.00012602,2]
[422880528,1779563448000,-151.0,0.000124,2]
[422880534,1779563448000,-192.0,0.00012603,3]
[422880531,1779563448000,-566.98361435,0.00012602,2]
[422880538,1779563448000,-185.0,0.00012833,2]
[422880541,1779563448000,-1902.74,0.00012876,2]
[422880544,1779563448000,-152.0,0.00012983,30]
[422880543,1779563448000,-2575.6821645,0.00012918,2]
[422880547,1779563448000,-151.0,0.00013,2]
[422880548,1779563448000,-151.0,0.00013,2]
[422880549,1779563448000,-152.0,0.0001301,30]
[422880545,1779563448000,-250.11331305,0.00013,2]
[422880540,1779563448000,-546.47,0.00012876,2]
[422880542,1779563448000,-842.64,0.00012876,2]
[422880546,1779563448000,-151.0,0.00013,2]
[422880539,1779563448000,-443.0,0.00012833,2]
[422880550,1779563448000,-160.0,0.00013098,2]
[422880551,1779563448000,-606.738643,0.00013098,2]
[422880552,1779563448000,-1053.477287,0.00013098,2]
[422880554,1779563448000,-152.0,0.00013104,7]
[422880553,1779563448000,-200.0,0.000131,2]
[422880555,1779563448000,-152.0,0.00013104,7]
[422880556,1779563448000,-1902.74,0.0001315,2]
[422880557,1779563448000,-842.64,0.0001315,2]
[422880559,1779563448000,-186.688814,0.00013156,2]
[422880558,1779563448000,-152.0,0.00013155,7]
[422880490,1779563448000,-842.64,0.00011232,2]
[422880529,1779563448000,-151.0,0.000124,2]
[422880537,1779563448000,-151.0,0.000127,2]
[422880530,1779563448000,-1039.76081289,0.000125,2]
[422880525,1779563448000,-458.47542683,0.00012328,2]
[422880496,1779563448000,-500.0,0.00011506,2]
[422880491,1779563448000,-7271.65205019,0.00011245,2]
[422880492,1779563448000,-3055.56,0.0001129,2]
[422880501,1779563448000,-305.0,0.00011507,3]
[422880511,1779563448000,-500.216,0.00011904,2]
[422880513,1779563448000,-500.0,0.00012054,2]
[422880512,1779563448000,-1039.76081289,0.00012,2]
[422880503,1779563448000,-151.0,0.000116,2]
[422880514,1779563448000,-1902.74,0.00012054,2]
[422880533,1779563448000,-842.64,0.00012602,2]
[422880500,1779563448000,-842.64,0.00011506,2]
[422880502,1779563448000,-170.27429862,0.00011516,2]
[422880506,1779563448000,-1902.74,0.0001178,2]
[422880508,1779563448000,-842.64,0.0001178,2]
[422880509,1779563448000,-151.0,0.000118,2]
[422880504,1779563448000,-151.0,0.000116,2]
[422880510,1779563448000,-151.0,0.000118,2]
[422880536,1779563448000,-151.0,0.000127,2]
[422880507,1779563448000,-500.0,0.0001178,2]
[422880520,1779563448000,-151.0,0.000121,2]
[422880523,1779563448000,-500.0,0.00012328,2]
[422880524,1779563448000,-1902.74,0.00012328,2]
[422880517,1779563448000,-8092.25255446,0.00012078,2]
[422880526,1779563448000,-842.64,0.00012328,2]
[422880522,1779563448000,-1039.76081289,0.000122,2]
[422880519,1779563448000,-151.0,0.000121,2]
[422880516,1779563448000,-842.64,0.00012054,2]
[422880518,1779563448000,-1039.76081289,0.000121,2]
[422880515,1779563448000,-500.0,0.00012054,2]
[422880505,1779563448000,-500.0,0.0001178,2]
[422880521,1779563448000,-2479.46560279,0.00012198,2]
[422880571,1779563449000,-151.0,0.000135,2]
[422880567,1779563449000,-842.64,0.00013424,2]
[422880570,1779563449000,-151.0,0.000135,2]
[422880568,1779563449000,-151.0,0.000135,2]
[422880565,1779563449000,-170.27429862,0.00013384,2]
[422880560,1779563449000,-151.0,0.000132,2]
[422880574,1779563449000,-466.722033,0.00013633,2]
[422880564,1779563449000,-631.49680685,0.00013204,2]
[422880561,1779563449000,-151.0,0.000132,2]
[422880562,1779563449000,-151.0,0.000132,2]
[422880573,1779563449000,-155.0,0.00013605,2]
[422880563,1779563449000,-151.0,0.000132,2]
[422880569,1779563449000,-151.0,0.000135,2]
[422880577,1779563449000,-853.15226968,0.00013698,2]
[422880572,1779563449000,-1469.29832205,0.00013524,2]
[422880575,1779563449000,-2942.20867708,0.00013638,2]
[422880566,1779563449000,-1902.74,0.00013424,2]
[422880578,1779563449000,-1902.74,0.00013698,2]
[422880580,1779563449000,-500.0,0.00013699,2]
[422880581,1779563449000,-179.91004498,0.00013699,2]
[422880576,1779563449000,-213.50156899,0.00013698,2]
[422880579,1779563449000,-842.64,0.00013698,2]
[422880585,1779563449000,-194.0,0.00013699,3]
[422880583,1779563449000,-1000.0,0.00013699,2]
[422880584,1779563449000,-198.920784,0.00013699,2]
[422880582,1779563449000,-500.0,0.00013699,2]
[422880586,1779563449000,-1829.3191874,0.00013699,2]
[422880587,1779563449000,-6115.6558587,0.000137,2]
[422880594,1779564439000,-413.53041084,7.377e-05,2]
[422880628,1779564633000,-4629.90808308,7.136e-05,2]
[422880630,1779564633000,-16.57308308,7.208e-05,2]
[422880629,1779564633000,-370.09191692,7.136e-05,2]
[422880682,1779564638000,-1892.7722219,7.957e-05,2]
[422880673,1779564638000,-500.0,7.599e-05,2]
[422880675,1779564638000,-77683.79595771,7.6e-05,2]
[422880677,1779564638000,-175.65018,7.7e-05,2]
[422880679,1779564638000,-1767.14712009,7.857e-05,2]
[422880674,1779564638000,-500.0,7.599e-05,2]
[422880678,1779564638000,-1641.52201839,7.757e-05,2]
[422880676,1779564638000,-1619.57121771,7.657e-05,2]
[422880685,1779564638000,-300.0,7.972e-05,2]
[422880681,1779564638000,-200171.65971721,7.957e-05,2]
[422880684,1779564638000,-300.0,7.972e-05,2]
[422880697,1779564638000,-300.0,7.972e-05,2]
[422880680,1779564638000,-75410.6203987,7.957e-05,2]
[422880686,1779564638000,-300.0,7.972e-05,2]
[422880687,1779564638000,-300.0,7.972e-05,2]
[422880689,1779564638000,-300.0,7.972e-05,2]
[422880688,1779564638000,-300.0,7.972e-05,2]
[422880690,1779564638000,-300.0,7.972e-05,2]
[422880695,1779564638000,-300.0,7.972e-05,2]
[422880672,1779564638000,-500.0,7.599e-05,2]
[422880696,1779564638000,-300.0,7.972e-05,2]
[422880693,1779564638000,-300.0,7.972e-05,2]
[422880698,1779564638000,-600.0,7.972e-05,2]
[422880691,1779564638000,-300.0,7.972e-05,2]
[422880683,1779564638000,-300.0,7.972e-05,2]
[422880669,1779564638000,-500.0,7.599e-05,2]
[422880663,1779564638000,-500.0,7.599e-05,2]
[422880667,1779564638000,-500.0,7.599e-05,2]
[422880692,1779564638000,-300.0,7.972e-05,2]
[422880646,1779564638000,-330.88523323,7.452e-05,2]
[422880644,1779564638000,-5000.0,7.136e-05,2]
[422880645,1779564638000,-183.42691692,7.208e-05,2]
[422880647,1779564638000,-81.34760135,7.452e-05,2]
[422880649,1779564638000,-300.0,7.556e-05,2]
[422880648,1779564638000,-300.0,7.556e-05,2]
[422880650,1779564638000,-300.0,7.556e-05,2]
[422880652,1779564638000,-1200.0,7.556e-05,2]
[422880656,1779564638000,-500.0,7.599e-05,2]
[422880654,1779564638000,-816.89170336,7.557e-05,2]
[422880651,1779564638000,-300.0,7.556e-05,2]
[422880655,1779564638000,-500.0,7.599e-05,2]
[422880653,1779564638000,-816.89170336,7.557e-05,2]
[422880657,1779564638000,-500.0,7.599e-05,2]
[422880658,1779564638000,-500.0,7.599e-05,2]
[422880660,1779564638000,-500.0,7.599e-05,2]
[422880659,1779564638000,-500.0,7.599e-05,2]
[422880661,1779564638000,-500.0,7.599e-05,2]
[422880665,1779564638000,-500.0,7.599e-05,2]
[422880664,1779564638000,-500.0,7.599e-05,2]
[422880666,1779564638000,-500.0,7.599e-05,2]
[422880662,1779564638000,-500.0,7.599e-05,2]
[422880670,1779564638000,-500.0,7.599e-05,2]
[422880668,1779564638000,-228.77243288,7.599e-05,2]
[422880671,1779564638000,-500.0,7.599e-05,2]
[422880694,1779564638000,-300.0,7.972e-05,2]
[422880718,1779564638000,-500.0,8.219e-05,2]
[422880700,1779564638000,-2018.39732372,8.057e-05,2]
[422880733,1779564638000,-500.0,8.493e-05,2]
[422880725,1779564638000,-180.8370726,8.219e-05,2]
[422880734,1779564638000,-500.0,8.493e-05,2]
[422880727,1779564638000,-500.0,8.219e-05,2]
[422880731,1779564638000,-500.0,8.493e-05,2]
[422880736,1779564638000,-179.95636182,8.493e-05,2]
[422880737,1779564638000,-500.0,8.493e-05,2]
[422880738,1779564638000,-500.0,8.493e-05,2]
[422880745,1779564638000,-500.0,8.493e-05,2]
[422880739,1779564638000,-1126.97,8.493e-05,2]
[422880744,1779564638000,-500.0,8.493e-05,2]
[422880741,1779564638000,-500.0,8.493e-05,2]
[422880742,1779564638000,-500.0,8.493e-05,2]
[422880746,1779564638000,-2270.90786083,8.507e-05,2]
[422880747,1779564638000,-500.0,8.767e-05,2]
[422880748,1779564638000,-277.24734385,8.767e-05,2]
[422880743,1779564638000,-500.0,8.493e-05,2]
[422880750,1779564638000,-500.0,8.767e-05,2]
[422880749,1779564638000,-500.0,8.767e-05,2]
[422880753,1779564638000,-500.0,8.767e-05,2]
[422880754,1779564638000,-1126.97,8.767e-05,2]
[422880751,1779564638000,-500.0,8.767e-05,2]
[422880752,1779564638000,-500.0,8.767e-05,2]
[422880699,1779564638000,-159.8893701,8e-05,2]
[422880755,1779564638000,-625.36675058,8.767e-05,2]
[422880735,1779564638000,-500.0,8.493e-05,2]
[422880726,1779564638000,-500.0,8.219e-05,2]
[422880740,1779564638000,-500.0,8.493e-05,2]
[422880728,1779564638000,-500.0,8.219e-05,2]
[422880701,1779564638000,-82106.17724028,8.119e-05,2]
[422880704,1779564638000,-500.9549049,8.219e-05,2]
[422880730,1779564638000,-166.0,8.312e-05,2]
[422880705,1779564638000,-500.0,8.219e-05,2]
[422880703,1779564638000,-500.99186555,8.219e-05,2]
[422880702,1779564638000,-2145.20806286,8.157e-05,2]
[422880707,1779564638000,-500.0,8.219e-05,2]
[422880706,1779564638000,-500.0,8.219e-05,2]
[422880708,1779564638000,-448.54589267,8.219e-05,2]
[422880710,1779564638000,-500.0,8.219e-05,2]
[422880711,1779564638000,-457.07710586,8.219e-05,2]
[422880712,1779564638000,-500.0,8.219e-05,2]
[422880714,1779564638000,-501.97985602,8.219e-05,2]
[422880709,1779564638000,-500.0,8.219e-05,2]
[422880716,1779564638000,-500.0,8.219e-05,2]
[422880723,1779564638000,-500.0,8.219e-05,2]
[422880724,1779564638000,-500.0,8.219e-05,2]
[422880722,1779564638000,-500.0,8.219e-05,2]
[422880721,1779564638000,-1126.97,8.219e-05,2]
[422880717,1779564638000,-500.0,8.219e-05,2]
[422880720,1779564638000,-500.0,8.219e-05,2]
[422880719,1779564638000,-500.0,8.219e-05,2]
[422880713,1779564638000,-500.0,8.219e-05,2]
[422880715,1779564638000,-500.0,8.219e-05,2]
[422880729,1779564638000,-175.65018,8.241e-05,2]
[422880732,1779564638000,-500.0,8.493e-05,2]
[422880798,1779564639000,-500.0,9.589e-05,2]
[422880802,1779564639000,-1126.97,9.589e-05,2]
[422880797,1779564639000,-250.0,9.524e-05,2]
[422880795,1779564639000,-486.43474481,9.452e-05,2]
[422880801,1779564639000,-500.0,9.589e-05,2]
[422880791,1779564639000,-500.0,9.315e-05,2]
[422880796,1779564639000,-2683.5407993,9.508e-05,2]
[422880800,1779564639000,-500.0,9.589e-05,2]
[422880792,1779564639000,-175.65018,9.321e-05,2]
[422880793,1779564639000,-152.0,9.414e-05,7]
[422880804,1779564639000,-500.0,9.589e-05,2]
[422880794,1779564639000,-500.0,9.425e-05,2]
[422880799,1779564639000,-500.0,9.589e-05,2]
[422880803,1779564639000,-500.0,9.589e-05,2]
[422880817,1779564639000,-3191.81811792,0.00010009,2]
[422880807,1779564639000,-500.0,9.863e-05,2]
[422880805,1779564639000,-500.0,9.589e-05,2]
[422880806,1779564639000,-864.0,9.646e-05,2]
[422880811,1779564639000,-1126.97,9.863e-05,2]
[422880809,1779564639000,-500.0,9.863e-05,2]
[422880813,1779564639000,-500.0,9.863e-05,2]
[422880808,1779564639000,-500.0,9.863e-05,2]
[422880812,1779564639000,-500.0,9.863e-05,2]
[422880815,1779564639000,-302.60608933,9.896e-05,2]
[422880816,1779564639000,-3924.19366935,0.0001,2]
[422880819,1779564639000,-500.0,0.00010136,2]
[422880820,1779564639000,-626.19,0.00010136,2]
[422880790,1779564639000,-500.0,9.315e-05,2]
[422880821,1779564639000,-500.0,0.00010136,2]
[422880814,1779564639000,-500.0,9.863e-05,2]
[422880789,1779564639000,-500.0,9.315e-05,2]
[422880761,1779564639000,-720.0,8.77e-05,2]
[422880784,1779564639000,-320.75813581,9.315e-05,2]
[422880824,1779564639000,-500.0,0.00010136,2]
[422880759,1779564639000,-500.0,8.767e-05,2]
[422880756,1779564639000,-500.0,8.767e-05,2]
[422880760,1779564639000,-500.0,8.767e-05,2]
[422880758,1779564639000,-631.1124011,8.767e-05,2]
[422880757,1779564639000,-500.0,8.767e-05,2]
[422880762,1779564639000,-175.65018,8.781e-05,2]
[422880764,1779564639000,-499.99999999,8.954e-05,2]
[422880763,1779564639000,-1330.29731346,8.819e-05,2]
[422880765,1779564639000,-2422.25073205,9.007e-05,2]
[422880770,1779564639000,-500.0,9.041e-05,2]
[422880769,1779564639000,-500.0,9.041e-05,2]
[422880766,1779564639000,-500.0,9.041e-05,2]
[422880767,1779564639000,-500.0,9.041e-05,2]
[422880787,1779564639000,-500.0,9.315e-05,2]
[422880768,1779564639000,-500.0,9.041e-05,2]
[422880772,1779564639000,-1126.97,9.041e-05,2]
[422880771,1779564639000,-500.0,9.041e-05,2]
[422880775,1779564639000,-500.0,9.041e-05,2]
[422880774,1779564639000,-500.0,9.041e-05,2]
[422880777,1779564639000,-160.0,9.107e-05,2]
[422880786,1779564639000,-1126.97,9.315e-05,2]
[422880785,1779564639000,-500.0,9.315e-05,2]
[422880776,1779564639000,-500.0,9.041e-05,2]
[422880782,1779564639000,-500.0,9.315e-05,2]
[422880781,1779564639000,-500.0,9.315e-05,2]
[422880778,1779564639000,-161.73153808,9.107e-05,2]
[422880779,1779564639000,-766.63845589,9.107e-05,2]
[422880780,1779564639000,-500.0,9.315e-05,2]
[422880783,1779564639000,-500.0,9.315e-05,2]
[422880773,1779564639000,-500.0,9.041e-05,2]
[422880825,1779564639000,-500.0,0.00010136,2]
[422880810,1779564639000,-500.0,9.863e-05,2]
[422880818,1779564639000,-3924.19366935,0.000101,2]
[422880866,1779564639000,-500.0,0.00010958,2]
[422880867,1779564639000,-177.0,0.00010959,3]
[422880870,1779564639000,-151.0,0.00011,2]
[422880868,1779564639000,-15000.0,0.00010959,2]
[422880872,1779564639000,-151.0,0.00011,2]
[422880869,1779564639000,-151.0,0.00011,2]
[422880863,1779564639000,-1126.97,0.00010958,2]
[422880865,1779564639000,-500.0,0.00010958,2]
[422880871,1779564639000,-151.0,0.00011,2]
[422880873,1779564639000,-3700.17788835,0.00011011,2]
[422880874,1779564639000,-151.0,0.000111,2]
[422880876,1779564639000,-159.8893701,0.00011229,2]
[422880875,1779564639000,-151.0,0.000111,2]
[422880877,1779564639000,-500.0,0.00011232,2]